[Event "EYCC Open-U14 2019"]
[Site "Bratislava"]
[Date "2019.08.07"]
[Round "6.16"]
[White "Fule, Simon"]
[Black "Trofimov, Pavel"]
[Result "0-1"]
[ECO "B90"]
[WhiteElo "2184"]
[BlackElo "2151"]
[Annotator "NA"]
[PlyCount "52"]
[EventDate "2019.08.02"]
[EventType "swiss"]
[EventCountry "SVK"]
[SourceTitle "playchess.com"]
[Source "ChessBase"]
[SourceQuality "1"]
[TimeControl "40/5400+30:1800+30"]

1. e4 {[%emt 0:00:00]} c5 {[%emt 0:00:00]} 2. Nf3 {[%emt 0:00:00]} d6 {[%emt 0:00:01]} 3. d4 {[%emt 0:00:00]} cxd4 {[%emt 0:00:37]} 4. Nxd4 {[%emt 0:00:00]} Nf6 {[%emt 0:00:06]} 5. Nc3 {[%emt 0:00:08]} a6 {[%emt 0:00:05]} 6. f3 {[%emt 0:00:05]} e5 {[%emt 0:00:40]} 7. Nb3 {[%emt 0:00:06]} Be7 {[%emt 0:00:20]} 8. Be3 {[%emt 0:00:27]} Be6 {[%emt 0:00:05]} 9. Qd2 {[%emt 0:01:04]} O-O {[%emt 0:00:06]} 10. O-O-O {[%emt 0:01:25]} Nbd7 {[%emt 0:00:08]} 11. g4 {[%emt 0:01:43]} b5 {[%emt 0:01:15]} 12. Rg1 {[%emt 0:02:47]} Nb6 {[%emt 0:12:09]} 13. Na5 {[%emt 0:18:27]} Qc7 {[%emt 0:11:00]} 14. Qf2 {[%emt 0:04:25]} Nfd7 {[%emt 0:18:41]} 15. Nb3 {[%emt 0:15:47]} b4 {[%emt 0:03:28]} 16. Nd5 {[%emt 0:00:53]} Bxd5 {[%emt 0:00:05]} 17. exd5 {[%emt 0:00:06]} a5 {[%emt 0:00:02]} 18. Qd2 {[%emt 0:08:02]} Nf6 {[%emt 0:07:21]} 19. Bxb6 {[%emt 0:08:19]} Qxb6 {[%emt 0:00:25]} 20. Bh3 {[%emt 0:00:15]} a4 {[%emt 0:01:17]} 21. Na1 {[%emt 0:00:07]} Ra5 {[%emt 0:01:27]} 22. g5 {[%emt 0:07:13]} Nxd5 {[%emt 0:05:57]} 23. Rg4 {[%emt 0:03:03]} a3 {[%emt 0:02:56]} 24. Nb3 {[%emt 0:00:23]} axb2+ {[%emt 0:00:52]} 25. Kxb2 {[%emt 0:00:10]} Rxa2+ {[%emt 0:01:04]} 26. Kxa2 {[%emt 0:00:13]} Qa7+ {[%emt 0:00:06]} 0-1

[Event "EYCC Open-U14 2019"]
[Site "Bratislava"]
[Date "2019.08.07"]
[Round "6.17"]
[White "Shoshin, Kirill"]
[Black "Pasztor, Balazs"]
[Result "1/2-1/2"]
[ECO "E43"]
[WhiteElo "2089"]
[BlackElo "2140"]
[Annotator "NA"]
[PlyCount "104"]
[EventDate "2019.08.02"]
[EventType "swiss"]
[EventCountry "SVK"]
[SourceTitle "playchess.com"]
[Source "ChessBase"]
[SourceQuality "1"]
[TimeControl "40/5400+30:1800+30"]

1. d4 {[%emt 0:00:00]} Nf6 {[%emt 0:00:00]} 2. c4 {[%emt 0:00:00]} e6 {[%emt 0:00:00]} 3. Nc3 {[%emt 0:00:00]} Bb4 {[%emt 0:00:26]} 4. e3 {[%emt 0:00:00]} b6 {[%emt 0:00:33]} 5. Bd3 {[%emt 0:00:00]} Bb7 {[%emt 0:00:17]} 6. Nge2 {[%emt 0:00:00]} Bxg2 {[%emt 0:01:05]} 7. Rg1 {[%emt 0:00:00]} Bf3 {[%emt 0:00:35]} 8. Qc2 {[%emt 0:00:00]} Nc6 {[%emt 0:01:17]} 9. a3 {[%emt 0:00:46]} Bd6 {[%emt 0:03:01]} 10. Ng3 {[%emt 0:08:11]} Ng4 {[%emt 0:03:23]} 11. h3 {[%emt 0:02:07]} Nh2 {[%emt 0:01:19]} 12. Nb5 {[%emt 0:14:40]} Qh4 {[%emt 0:07:44]} 13. Ne4 {[%emt 0:07:48]} Bxe4 {[%emt 0:05:37]} 14. Bxe4 {[%emt 0:00:03]} Qxh3 {[%emt 0:06:26]} 15. Qe2 {[%emt 0:01:15]} O-O {[%emt 0:14:20]} 16. Nxd6 {[%emt 0:00:22]} cxd6 {[%emt 0:00:21]} 17. Rg3 {[%emt 0:03:03]} Qh4 {[%emt 0:07:30]} 18. Bg2 {[%emt 0:00:02]} Rac8 {[%emt 0:08:35]} 19. Rh3 {[%emt 0:06:10]} Qg5 {[%emt 0:03:02]} 20. Rxh2 {[%emt 0:01:27]} Na5 {[%emt 0:02:02]} 21. Qd3 {[%emt 0:08:11]} Qg6 {[%emt 0:02:02]} 22. Qxg6 {[%emt 0:00:18]} hxg6 {[%emt 0:00:20]} 23. Bd2 {[%emt 0:00:25]} Nxc4 {[%emt 0:03:44]} 24. b3 {[%emt 0:00:18]} Na5 {[%emt 0:02:49]} 25. Bxa5 {[%emt 0:00:34]} bxa5 {[%emt 0:00:05]} 26. Kd2 {[%emt 0:00:20]} Rb8 {[%emt 0:01:25]} 27. Rah1 {[%emt 0:01:52]} f6 {[%emt 0:00:38]} 28. Rh8+ {[%emt 0:00:02]} Kf7 {[%emt 0:00:08]} 29. Rxf8+ {[%emt 0:00:03]} Rxf8 {[%emt 0:00:07]} 30. Rc1 {[%emt 0:00:19]} Rb8 {[%emt 0:03:45]} 31. Rc7 {[%emt 0:02:51]} Rxb3 {[%emt 0:00:18]} 32. a4 {[%emt 0:00:24]} Rb2+ {[%emt 0:01:07]} 33. Ke1 {[%emt 0:00:04]} Rb1+ {[%emt 0:00:11]} 34. Ke2 {[%emt 0:01:20]} Rb2+ {[%emt 0:00:06]} 35. Kf3 {[%emt 0:15:19]} Rb4 {[%emt 0:03:05]} 36. Rxd7+ {[%emt 0:01:03]} Kf8 {[%emt 0:00:17]} 37. Rxd6 {[%emt 0:01:15]} Ke7 {[%emt 0:01:58]} 38. Ra6 {[%emt 0:00:06]} Rxa4 {[%emt 0:00:07]} 39. Rxa7+ {[%emt 0:00:03]} Kd6 {[%emt 0:01:00]} 40. Rxg7 {[%emt 0:00:00]} g5 {[%emt 0:00:00]} 41. Kg3 {[%emt 0:05:28]} Ra1 {[%emt 0:00:58]} 42. Ra7 {[%emt 0:00:11]} a4 {[%emt 0:00:20]} 43. Ra6+ {[%emt 0:00:08]} Ke7 {[%emt 0:00:20]} 44. Bb7 {[%emt 0:01:27]} a3 {[%emt 0:00:35]} 45. Bc8 {[%emt 0:00:44]} a2 {[%emt 0:01:11]} 46. Kf3 {[%emt 0:01:51]} Rc1 {[%emt 0:00:59]} 47. Ra7+ {[%emt 0:01:11]} Kd6 {[%emt 0:01:47]} 48. Ra6+ {[%emt 0:00:59]} Ke7 {[%emt 0:00:11]} 49. Rxa2 {[%emt 0:00:08]} Rxc8 {[%emt 0:00:13]} 50. Ra7+ {[%emt 0:00:12]} Kd6 {[%emt 0:00:37]} 51. Rf7 {[%emt 0:00:14]} f5 {[%emt 0:00:47]} 52. Ra7 {[%emt 0:00:28]} Rc2 {[%emt 0:00:36]} 1/2-1/2

[Event "EYCC Open-U14 2019"]
[Site "Bratislava"]
[Date "2019.08.07"]
[Round "6.18"]
[White "Stalmach, Richard"]
[Black "Revaliente Montoya, Ciro"]
[Result "0-1"]
[ECO "A53"]
[WhiteElo "2381"]
[BlackElo "1917"]
[Annotator "NA"]
[PlyCount "108"]
[EventDate "2019.08.02"]
[EventType "swiss"]
[EventCountry "SVK"]
[SourceTitle "playchess.com"]
[Source "ChessBase"]
[SourceQuality "1"]
[TimeControl "40/5400+30:1800+30"]

1. d4 {[%emt 0:00:00]} Nf6 {[%emt 0:00:00]} 2. c4 {[%emt 0:00:00]} d6 {[%emt 0:00:00]} 3. Nc3 {[%emt 0:00:02]} e5 {[%emt 0:00:05]} 4. e3 {[%emt 0:01:14]} e4 {[%emt 0:06:11]} 5. Nge2 {[%emt 0:12:53]} Bf5 {[%emt 0:03:49]} 6. h4 {[%emt 0:05:15]} h6 7. Nf4 {[%emt 0:01:09]} g6 {[%emt 0:12:37]} 8. Be2 {[%emt 0:11:20]} h5 {[%emt 0:01:35]} 9. b3 {[%emt 0:17:05]} Bg7 {[%emt 0:04:31]} 10. Bb2 {[%emt 0:00:07]} O-O {[%emt 0:00:06]} 11. Qd2 {[%emt 0:04:23]} c6 {[%emt 0:08:09]} 12. O-O-O {[%emt 0:06:12]} a5 {[%emt 0:04:09]} 13. f3 {[%emt 0:08:29]} Qd7 {[%emt 0:05:31]} 14. Rdg1 {[%emt 0:02:32]} exf3 {[%emt 0:02:59]} 15. gxf3 {[%emt 0:04:33]} d5 {[%emt 0:01:05]} 16. Nd3 {[%emt 0:01:08]} Qe7 {[%emt 0:03:32]} 17. Ne5 {[%emt 0:05:21]} Nbd7 {[%emt 0:01:25]} 18. Bd3 {[%emt 0:01:26]} Bxd3 {[%emt 0:03:24]} 19. Qxd3 {[%emt 0:00:13]} Rfd8 {[%emt 0:07:52]} 20. cxd5 {[%emt 0:04:06]} Nxe5 {[%emt 0:02:17]} 21. dxe5 {[%emt 0:00:30]} Nxd5 {[%emt 0:00:15]} 22. Qe4 {[%emt 0:08:00]} Bxe5 {[%emt 0:04:59]} 23. Nxd5 {[%emt 0:00:42]} Rxd5 {[%emt 0:00:01]} 24. Kb1 {[%emt 0:00:29]} Qf6 {[%emt 0:01:15]} 25. Rg2 {[%emt 0:00:58]} Bxb2 {[%emt 0:04:12]} 26. Rxb2 {[%emt 0:00:00]} Re5 {[%emt 0:00:09]} 27. Qf4 {[%emt 0:01:50]} Qxf4 {[%emt 0:01:54]} 28. exf4 {[%emt 0:00:00]} Rf5 {[%emt 0:00:01]} 29. Rd2 {[%emt 0:00:58]} Rxf4 {[%emt 0:01:28]} 30. Rd7 {[%emt 0:00:27]} b5 {[%emt 0:00:28]} 31. Rc7 {[%emt 0:00:38]} Rxf3 {[%emt 0:00:46]} 32. Rxc6 {[%emt 0:00:05]} a4 {[%emt 0:00:17]} 33. b4 {[%emt 0:01:28]} Rf4 {[%emt 0:02:07]} 34. a3 {[%emt 0:00:05]} Rf3 {[%emt 0:00:09]} 35. Rb6 {[%emt 0:00:40]} Rxa3 {[%emt 0:00:05]} 36. Rxb5 {[%emt 0:00:04]} Rf3 {[%emt 0:00:16]} 37. Rh2 {[%emt 0:00:21]} Re8 {[%emt 0:01:56]} 38. Rb7 {[%emt 0:02:18]} Rb3+ {[%emt 0:00:55]} 39. Ka2 {[%emt 0:00:11]} Ree3 {[%emt 0:00:41]} 40. Rf2 {[%emt 0:00:00]} f5 41. Rc2 {[%emt 0:07:32]} Rec3 {[%emt 0:05:30]} 42. Rxc3 {[%emt 0:03:19]} Rxc3 {[%emt 0:00:02]} 43. Ra7 {[%emt 0:00:05]} Rc4 {[%emt 0:05:26]} 44. Ka3 {[%emt 0:03:03]} f4 45. Kxa4 {[%emt 0:09:18]} f3 {[%emt 0:04:51]} 46. Kb5 {[%emt 0:02:16]} f2 {[%emt 0:05:55]} 47. Ra1 {[%emt 0:00:13]} Rxh4 {[%emt 0:00:06]} 48. Kc5 {[%emt 0:03:49]} Rf4 {[%emt 0:00:07]} 49. Rf1 {[%emt 0:00:03]} g5 {[%emt 0:01:13]} 50. b5 {[%emt 0:00:05]} g4 {[%emt 0:00:11]} 51. b6 {[%emt 0:00:05]} g3 {[%emt 0:00:06]} 52. b7 {[%emt 0:00:03]} Rf8 {[%emt 0:00:03]} 53. Kd4 {[%emt 0:00:11]} g2 {[%emt 0:00:15]} 54. Rxf2 {[%emt 0:00:06]} g1=Q {[%emt 0:00:04] Rg2+} 0-1

[Event "EYCC Open-U14 2019"]
[Site "Bratislava"]
[Date "2019.08.07"]
[Round "6.19"]
[White "Poltorak, Sebastian"]
[Black "Musyuk, Lior"]
[Result "1-0"]
[ECO "D35"]
[WhiteElo "2068"]
[BlackElo "2236"]
[Annotator "NA"]
[PlyCount "81"]
[EventDate "2019.08.02"]
[EventType "swiss"]
[EventCountry "SVK"]
[SourceTitle "playchess.com"]
[Source "ChessBase"]
[SourceQuality "1"]
[TimeControl "40/5400+30:1800+30"]

1. d4 {[%emt 0:00:00]} Nf6 {[%emt 0:00:00]} 2. c4 {[%emt 0:00:00]} e6 {[%emt 0:00:00]} 3. Nc3 {[%emt 0:00:00]} d5 {[%emt 0:00:10]} 4. cxd5 {[%emt 0:00:00]} Nxd5 {[%emt 0:00:29]} 5. e4 {[%emt 0:00:03]} Nxc3 {[%emt 0:00:19]} 6. bxc3 {[%emt 0:00:09]} c5 {[%emt 0:00:17]} 7. Nf3 {[%emt 0:02:08]} cxd4 {[%emt 0:00:17]} 8. cxd4 {[%emt 0:00:05]} Bb4+ {[%emt 0:00:11]} 9. Bd2 {[%emt 0:00:05]} Bxd2+ {[%emt 0:00:17]} 10. Qxd2 {[%emt 0:00:10]} O-O {[%emt 0:00:23]} 11. Bc4 {[%emt 0:01:05]} Nc6 {[%emt 0:04:32]} 12. O-O {[%emt 0:00:11]} b6 {[%emt 0:00:41]} 13. Rad1 {[%emt 0:00:57]} Bb7 {[%emt 0:02:50]} 14. Rfe1 {[%emt 0:01:25]} Rc8 {[%emt 0:05:23]} 15. Qf4 {[%emt 0:08:00]} Na5 {[%emt 0:08:12]} 16. Bd3 {[%emt 0:01:21]} Qf6 {[%emt 0:04:59]} 17. Qg3 {[%emt 0:04:22]} h6 {[%emt 0:11:19]} 18. d5 {[%emt 0:02:04]} exd5 {[%emt 0:04:31]} 19. e5 {[%emt 0:01:18]} Qe7 {[%emt 0:00:55]} 20. e6 {[%emt 0:14:12]} fxe6 {[%emt 0:01:35]} 21. Qg6 {[%emt 0:01:24]} Qf6 {[%emt 0:01:44]} 22. Qh7+ {[%emt 0:04:36]} Kf7 {[%emt 0:00:09]} 23. Bg6+ {[%emt 0:03:46]} Ke7 {[%emt 0:01:25]} 24. Nd4 {[%emt 0:00:53]} Rc6 {[%emt 0:11:30]} 25. Nxc6+ {[%emt 0:03:41]} Nxc6 {[%emt 0:00:31]} 26. f4 {[%emt 0:06:27]} Kd6 {[%emt 0:03:09]} 27. Bh5 {[%emt 0:06:09]} Rc8 {[%emt 0:13:23]} 28. Bg4 {[%emt 0:09:14]} Nd8 {[%emt 0:00:49]} 29. Qd3 {[%emt 0:01:34]} Qxf4 {[%emt 0:04:22]} 30. Qe2 {[%emt 0:03:27]} Qf6 {[%emt 0:05:37]} 31. Rf1 {[%emt 0:01:16]} Qg6 {[%emt 0:03:52]} 32. Rde1 {[%emt 0:00:45]} Rc2 {[%emt 0:01:53]} 33. Qe5+ {[%emt 0:00:36]} Kd7 {[%emt 0:00:26]} 34. Bh3 {[%emt 0:00:47]} Rd2 {[%emt 0:03:47]} 35. Rf8 {[%emt 0:02:38]} d4 {[%emt 0:00:37]} 36. Rxd8+ {[%emt 0:00:22]} Kxd8 {[%emt 0:00:43]} 37. Qd6+ {[%emt 0:00:05]} Ke8 {[%emt 0:00:16]} 38. Rxe6+ {[%emt 0:00:10]} Qxe6 {[%emt 0:00:16]} 39. Qxe6+ {[%emt 0:00:15]} Kf8 {[%emt 0:00:01]} 40. Qd6+ {[%emt 0:00:00]} Kg8 {[%emt 0:00:00]} 41. Qb8+ {[%emt 0:00:24]} 1-0

[Event "EYCC Open-U14 2019"]
[Site "Bratislava"]
[Date "2019.08.07"]
[Round "6.20"]
[White "Frank, Adam"]
[Black "Fernandez Lopez, Ruben"]
[Result "1/2-1/2"]
[ECO "B33"]
[WhiteElo "2125"]
[BlackElo "2207"]
[Annotator "NA"]
[PlyCount "108"]
[EventDate "2019.08.02"]
[EventType "swiss"]
[EventCountry "SVK"]
[SourceTitle "playchess.com"]
[Source "ChessBase"]
[SourceQuality "1"]
[TimeControl "40/5400+30:1800+30"]

1. e4 {[%emt 0:00:00]} c5 {[%emt 0:00:00]} 2. Nf3 {[%emt 0:00:00]} e6 {[%emt 0:00:00]} 3. d4 {[%emt 0:00:00]} cxd4 {[%emt 0:00:00]} 4. Nxd4 {[%emt 0:00:00]} Nf6 {[%emt 0:00:06]} 5. Nc3 {[%emt 0:00:27]} Nc6 {[%emt 0:00:15]} 6. Ndb5 {[%emt 0:00:12]} d6 {[%emt 0:00:15]} 7. Bf4 {[%emt 0:00:05]} e5 {[%emt 0:00:15]} 8. Bg5 {[%emt 0:00:04]} a6 {[%emt 0:00:11]} 9. Na3 {[%emt 0:00:12]} Be6 {[%emt 0:00:34]} 10. Nc4 {[%emt 0:02:31]} Rb8 {[%emt 0:01:51]} 11. a4 {[%emt 0:09:57]} Nb4 {[%emt 0:02:28]} 12. Be2 {[%emt 0:10:17]} Be7 {[%emt 0:00:51]} 13. Bxf6 {[%emt 0:09:44]} Bxf6 {[%emt 0:01:22]} 14. Ne3 {[%emt 0:01:31]} Bg5 {[%emt 0:01:14]} 15. Ned5 {[%emt 0:02:09]} Nxd5 {[%emt 0:02:45]} 16. Nxd5 {[%emt 0:02:56]} O-O {[%emt 0:00:42]} 17. Bc4 {[%emt 0:13:49]} g6 {[%emt 0:06:30]} 18. O-O {[%emt 0:03:25]} Kh8 {[%emt 0:01:17]} 19. Qe2 {[%emt 0:05:47]} Rc8 {[%emt 0:10:17]} 20. Rad1 {[%emt 0:06:06]} f5 {[%emt 0:01:46]} 21. f3 {[%emt 0:01:48]} Qa5 {[%emt 0:17:24]} 22. Bb3 {[%emt 0:02:28]} fxe4 {[%emt 0:07:54]} 23. fxe4 {[%emt 0:00:30]} h5 {[%emt 0:03:54]} 24. h3 {[%emt 0:02:42]} Bxd5 {[%emt 0:05:03]} 25. Rxd5 {[%emt 0:01:56]} Qd8 {[%emt 0:00:16]} 26. g3 {[%emt 0:05:59]} h4 {[%emt 0:01:29]} 27. Rd3 {[%emt 0:01:28]} Qb6+ {[%emt 0:02:49]} 28. Kg2 {[%emt 0:00:17]} Kg7 {[%emt 0:00:14]} 29. Rdf3 {[%emt 0:01:18]} hxg3 {[%emt 0:00:47]} 30. Rf7+ {[%emt 0:01:25]} Rxf7 {[%emt 0:00:01]} 31. Rxf7+ {[%emt 0:00:05]} Kh6 {[%emt 0:00:15]} 32. h4 {[%emt 0:10:01]} Bf4 {[%emt 0:00:16]} 33. h5 {[%emt 0:01:45]} Qe3 {[%emt 0:00:53]} 34. Qxe3 {[%emt 0:00:23]} Bxe3 {[%emt 0:00:01]} 35. hxg6 {[%emt 0:00:38]} Kxg6 {[%emt 0:00:17]} 36. Kxg3 {[%emt 0:01:57]} Bf4+ {[%emt 0:00:33]} 37. Kf3 {[%emt 0:00:44]} b5 {[%emt 0:04:45]} 38. axb5 {[%emt 0:01:35]} axb5 {[%emt 0:00:00]} 39. Rd7 {[%emt 0:00:46]} Bc1 {[%emt 0:00:43]} 40. Kg4 {[%emt 0:00:00]} Rf8 {[%emt 0:00:00]} 41. Rxd6+ {[%emt 0:05:50]} Rf6 {[%emt 0:05:15]} 42. Be6 {[%emt 0:00:32]} Rf4+ {[%emt 0:00:54]} 43. Kg3 {[%emt 0:00:01]} Bxb2 {[%emt 0:00:53]} 44. Bf5+ {[%emt 0:01:35]} Kg5 {[%emt 0:00:33]} 45. Rg6+ {[%emt 0:03:28]} Kh5 {[%emt 0:00:01]} 46. Rb6 {[%emt 0:03:13]} Bc3 {[%emt 0:00:42]} 47. Rxb5 {[%emt 0:00:47]} Kg5 {[%emt 0:00:06]} 48. Rb1 {[%emt 0:02:01]} Bd4 {[%emt 0:01:36]} 49. c4 {[%emt 0:01:35]} Rf2 {[%emt 0:00:14]} 50. Rb7 {[%emt 0:01:44]} Rc2 {[%emt 0:00:25]} 51. Rg7+ {[%emt 0:00:07]} Kf6 {[%emt 0:00:01]} 52. Rg6+ {[%emt 0:00:04]} Kf7 {[%emt 0:00:05]} 53. Ra6 {[%emt 0:00:18]} Ke7 {[%emt 0:00:10]} 54. Kg4 {[%emt 0:01:07]} Rxc4 {[%emt 0:00:45]} 1/2-1/2

[Event "EYCC Open-U14 2019"]
[Site "Bratislava"]
[Date "2019.08.07"]
[Round "6.21"]
[White "Neumann, Filip"]
[Black "Papadiamandis, Elliot"]
[Result "1/2-1/2"]
[ECO "B51"]
[WhiteElo "1982"]
[BlackElo "2202"]
[Annotator "NA"]
[PlyCount "56"]
[EventDate "2019.08.02"]
[EventType "swiss"]
[EventCountry "SVK"]
[SourceTitle "playchess.com"]
[Source "ChessBase"]
[SourceQuality "1"]
[TimeControl "40/5400+30:1800+30"]

1. e4 {[%emt 0:00:00]} c5 {[%emt 0:00:07]} 2. Nf3 {[%emt 0:00:00]} d6 {[%emt 0:00:39]} 3. Bb5+ {[%emt 0:00:03]} Nd7 {[%emt 0:00:33]} 4. O-O {[%emt 0:00:22]} a6 {[%emt 0:00:43]} 5. Bxd7+ {[%emt 0:00:10]} Bxd7 {[%emt 0:00:35]} 6. c3 {[%emt 0:01:00]} Nf6 {[%emt 0:02:10]} 7. Re1 {[%emt 0:00:07]} e5 {[%emt 0:03:14]} 8. d4 {[%emt 0:03:57]} Qc7 {[%emt 0:01:22]} 9. a4 {[%emt 0:04:47]} Rc8 {[%emt 0:09:46]} 10. a5 {[%emt 0:06:09]} Be7 {[%emt 0:12:43]} 11. Nbd2 {[%emt 0:03:05]} c4 {[%emt 0:03:46]} 12. Nf1 {[%emt 0:02:47]} Bc6 {[%emt 0:02:43]} 13. d5 {[%emt 0:00:53]} Bb5 {[%emt 0:01:20]} 14. Bg5 {[%emt 0:15:44]} Qd8 {[%emt 0:11:56]} 15. N3d2 {[%emt 0:01:50]} h6 {[%emt 0:05:10]} 16. Be3 {[%emt 0:04:39]} Nd7 {[%emt 0:02:45]} 17. Ng3 {[%emt 0:01:34]} Nc5 {[%emt 0:07:23]} 18. Nf5 {[%emt 0:06:27]} Nd3 {[%emt 0:08:53]} 19. Nxg7+ {[%emt 0:02:54]} Kf8 {[%emt 0:01:36]} 20. Nf5 {[%emt 0:00:56]} Nxe1 {[%emt 0:01:02]} 21. Qg4 {[%emt 0:03:25]} Bg5 {[%emt 0:07:10]} 22. Rxe1 {[%emt 0:02:02]} Bd7 {[%emt 0:01:11]} 23. f4 {[%emt 0:04:37]} Bxf5 {[%emt 0:02:14]} 24. Qxf5 {[%emt 0:01:49]} Bxf4 {[%emt 0:01:31]} 25. Bxf4 {[%emt 0:02:13]} exf4 {[%emt 0:00:57]} 26. e5 {[%emt 0:00:38]} Kg7 {[%emt 0:02:08]} 27. Ne4 {[%emt 0:01:19]} dxe5 {[%emt 0:02:00]} 28. Qxe5+ {[%emt 0:01:01]} f6 {[%emt 0:01:24]} 1/2-1/2

[Event "EYCC Open-U14 2019"]
[Site "Bratislava"]
[Date "2019.08.07"]
[Round "6.22"]
[White "Yaniv, Yuval"]
[Black "Indriunas, Matas"]
[Result "1-0"]
[ECO "B27"]
[WhiteElo "2135"]
[BlackElo "1960"]
[Annotator "NA"]
[PlyCount "63"]
[EventDate "2019.08.02"]
[EventType "swiss"]
[EventCountry "SVK"]
[SourceTitle "playchess.com"]
[Source "ChessBase"]
[SourceQuality "1"]
[TimeControl "40/5400+30:1800+30"]

1. e4 {[%emt 0:00:00]} c5 {[%emt 0:00:00]} 2. Nf3 {[%emt 0:01:06]} g6 {[%emt 0:00:24]} 3. Bc4 {[%emt 0:03:16]} Bg7 {[%emt 0:00:42]} 4. c3 {[%emt 0:00:35]} e6 {[%emt 0:10:28]} 5. d4 {[%emt 0:01:48]} cxd4 {[%emt 0:05:18]} 6. Nxd4 {[%emt 0:00:13]} a6 {[%emt 0:04:18]} 7. O-O {[%emt 0:02:23]} Ne7 {[%emt 0:04:04]} 8. Bb3 {[%emt 0:03:20]} O-O {[%emt 0:07:40]} 9. Bg5 {[%emt 0:02:58]} h6 {[%emt 0:13:49]} 10. Bh4 {[%emt 0:00:39]} g5 {[%emt 0:01:43]} 11. Bg3 {[%emt 0:00:19]} d5 {[%emt 0:01:03]} 12. exd5 {[%emt 0:16:19]} Nxd5 {[%emt 0:00:14]} 13. Qf3 {[%emt 0:01:13]} Nf4 {[%emt 0:13:34]} 14. Bxf4 {[%emt 0:22:11]} gxf4 {[%emt 0:00:05]} 15. Rd1 {[%emt 0:00:10]} Qf6 {[%emt 0:07:36]} 16. Qe4 {[%emt 0:12:10]} e5 {[%emt 0:06:00]} 17. Nf3 {[%emt 0:04:00]} Nc6 {[%emt 0:01:58]} 18. Bc2 {[%emt 0:00:30]} Re8 {[%emt 0:00:44]} 19. Nbd2 {[%emt 0:04:06]} Bg4 {[%emt 0:01:02]} 20. Qh7+ {[%emt 0:06:24]} Kf8 {[%emt 0:01:30]} 21. Ne4 {[%emt 0:00:08]} Qe6 {[%emt 0:09:51]} 22. Nh4 {[%emt 0:08:41]} Bxd1 {[%emt 0:02:01]} 23. Bxd1 {[%emt 0:00:02]} Ne7 {[%emt 0:00:58]} 24. Bb3 {[%emt 0:01:01]} Qg4 {[%emt 0:00:41]} 25. Nf6 {[%emt 0:00:18]} Qc8 {[%emt 0:01:55]} 26. Nh5 {[%emt 0:01:21]} Qg4 {[%emt 0:01:11]} 27. Nf6 {[%emt 0:00:27]} Qc8 {[%emt 0:00:08]} 28. h3 Rd8 {[%emt 0:03:01]} 29. Nh5 {[%emt 0:02:39]} Ke8 {[%emt 0:00:15]} 30. Qxg7 {[%emt 0:01:10]} Kd7 {[%emt 0:00:19]} 31. Rd1+ {[%emt 0:00:29]} Kc7 {[%emt 0:00:23]} 32. Qxe5+ {[%emt 0:00:09]} 1-0